bitfinex-derivatives/quotes_ETHF0:USTF0_20251025
["timestamp","ask_amount","ask_price","bid_price","bid_amount"]
[1761364989742,1.0551511,3924.9,3924.8,1.87556]
[1761364993647,1.0551511,3924.9,3924.8,1.417]
[1761364994945,1.0551511,3924.9,3924.8,1.87556]
[1761364995248,1.05603948,3924.9,3924.8,1.87556]
[1761364998448,0.59749948,3924.9,3924.8,1.87556]
[1761365011546,0.00323585,3924.9,3924.8,1.87556]
[1761365027770,3.2078,3925.8,3925.7,0.6985]
[1761365028070,3.80194833,3925.8,3925.7,10.66795]
[1761365028862,3.80422015,3925.8,3925.7,10.67001022]
[1761365029372,0.59642015,3925.8,3925.7,10.67001022]
[1761365033172,3.2078,3927.4,3927.3,0.6985]
[1761365033378,3.2078,3927.4,3927.3,0.504]
[1761365034066,3.21093515,3927.4,3927.3,0.504]
[1761365038474,11.21093515,3927.4,3927.3,0.504]
[1761365041077,3.21093515,3927.4,3927.3,0.504]
[1761365042077,11.21093515,3927.4,3927.3,0.504]
[1761365042386,11.21093515,3927.4,3927.0,0.2133]
[1761365042387,0.45829,3927.1,3927.0,0.2133]
[1761365042777,0.45835,3926.6,3926.5,0.2133]
[1761365043578,0.45835,3926.6,3926.5,0.5391]
[1761365044476,8.45835,3926.6,3926.5,0.66]
[1761365044677,0.45835,3926.6,3926.5,0.66]
[1761365045078,1.0188056,3926.6,3926.5,0.66]
[1761365051988,9.0188056,3926.6,3926.5,0.66]
[1761365052592,1.0188056,3926.6,3926.5,0.66]
[1761365059002,9.0188056,3926.6,3926.5,0.66]
[1761365060300,1.0188056,3926.6,3926.5,0.66]
[1761365061899,4.2266056,3926.6,3926.5,0.66]
[1761365062297,3.66615,3926.6,3926.5,0.66]
[1761365062803,11.66615,3926.6,3926.5,0.9781]
[1761365064007,3.66615,3926.6,3926.5,1.2806]
[1761365069801,0.45835,3926.6,3926.5,1.2806]
[1761365069998,3.66615,3926.6,3926.5,1.2806]
[1761365072307,4.57462848,3926.6,3926.5,1.2806]
[1761365076009,4.57462848,3926.6,3926.5,0.66]
[1761365076314,4.57860277,3926.6,3926.5,0.66]
[1761365076914,4.57860277,3926.6,3926.5,0.9781]
[1761365077213,3.66615,3926.6,3926.5,0.9781]
[1761365078116,3.66615,3926.6,3926.5,0.66]
[1761365079016,0.45835,3926.6,3926.5,0.66]
[1761365079220,3.66615,3926.6,3926.5,0.66]
[1761365082825,0.45835,3926.6,3926.5,0.66]
[1761365083024,3.66615,3926.6,3926.5,0.66]
[1761365083220,3.66615,3926.6,3926.5,0.9622]
[1761365086631,3.66615,3926.6,3926.5,0.66]
[1761365090635,3.66615,3926.6,3926.5,0.9622]
[1761365091133,0.45835,3926.6,3926.5,0.9622]
[1761365091335,3.66615,3926.6,3926.5,0.9622]
[1761365091634,0.45835,3926.6,3926.5,0.9622]
[1761365091828,3.66615,3926.6,3926.5,0.9622]
[1761365095537,0.45835,3926.6,3926.5,0.9622]
[1761365095745,3.66615,3926.6,3926.5,0.9622]
[1761365097943,3.66615,3926.6,3926.5,1.2312]
[1761365104252,3.2078,3926.6,3926.5,1.2312]
[1761365105151,12.66911,3927.0,3926.6,0.4133]
[1761365105344,12.66911,3927.0,3926.9,0.953]
[1761365107455,3.66611,3927.0,3926.9,0.953]
[1761365107652,3.2078,3927.0,3926.9,0.953]
[1761365109448,0.45829,3927.1,3927.0,0.5373]
[1761365109648,0.45829,3927.1,3927.0,1.0646]
[1761365126065,3.66609,3927.1,3927.0,1.0646]
[1761365128664,4.57915018,3927.1,3927.0,1.0646]
[1761365130657,13.57715018,3927.1,3927.0,1.0646]
[1761365133354,12.66409,3927.1,3927.0,1.0646]
[1761365143272,9.45629,3927.1,3927.0,1.0646]
[1761365143567,12.66409,3927.1,3927.0,1.0646]
[1761365149674,14.03345095,3927.1,3927.0,1.0646]
[1761365150470,12.66409,3927.1,3927.0,1.0646]
[1761365159675,13.57731056,3927.1,3927.0,1.0646]
[1761365163485,12.66409,3927.1,3927.0,1.0646]
[1761365166589,12.66409,3927.1,3927.0,0.8021]
[1761365166788,12.66409,3927.1,3927.0,0.5373]
[1761365173798,12.66409,3927.1,3927.0,0.7693]
[1761365178201,12.66409,3927.1,3927.0,0.991]
[1761365189807,9.45629,3927.1,3927.0,0.991]
[1761365190000,12.66409,3927.1,3927.0,0.991]
[1761365199612,14.03345095,3927.1,3927.0,0.991]
[1761365204616,10.82565095,3927.1,3927.0,0.991]
[1761365204817,14.03345095,3927.1,3927.0,0.991]
[1761365209720,12.66409,3927.1,3927.0,0.991]
[1761365225934,12.66409,3927.1,3927.0,0.5373]
[1761365227739,14.03345095,3927.1,3927.0,0.5373]
[1761365227933,12.66409,3927.1,3927.0,0.5373]
[1761365233137,12.66409,3927.1,3927.0,0.7583]
[1761365233337,3.2078,3927.1,3927.0,0.988]
[1761365248554,0.45828,3927.3,3927.2,1.00788]
[1761365248747,0.45828,3927.3,3927.2,1.23758]
[1761365252761,0.45828,3927.3,3927.2,0.7793]
[1761365253661,0.45828,3927.3,3927.2,1.23758]
[1761365254164,0.45828,3927.3,3927.2,0.3286]
[1761365263272,1.82685229,3927.3,3927.2,0.3286]
[1761365264274,0.45828,3927.3,3927.2,0.3286]
[1761365265566,1.82685229,3927.3,3927.2,0.3286]
[1761365265768,0.45828,3927.3,3927.2,0.3286]
[1761365266175,1.82685229,3927.3,3927.2,0.3286]
[1761365267164,0.45828,3927.3,3927.2,0.3286]
[1761365267469,1.82685229,3927.3,3927.2,0.3286]
[1761365268474,0.45828,3927.3,3927.2,0.3286]
[1761365268674,1.82685229,3927.3,3927.2,0.3286]
[1761365269174,0.45828,3927.3,3927.2,0.3286]
[1761365269380,10.35016044,3927.3,3927.2,0.7792]
[1761365272271,9.43928,3927.3,3927.2,0.3286]
[1761365275280,10.80785229,3927.3,3927.2,0.3286]
[1761365285284,9.43928,3927.3,3927.2,0.3286]
[1761365285588,9.43928,3927.3,3927.2,0.5514]
[1761365286892,9.43928,3927.3,3927.2,0.3286]
[1761365287887,9.43928,3927.3,3927.2,0.5514]
[1761365288190,10.80518942,3927.3,3927.2,0.7842]
[1761365288589,0.45828,3927.3,3927.2,0.7842]
[1761365288791,9.89104244,3927.3,3927.2,0.7842]
[1761365289186,8.979,3927.3,3927.2,0.7842]
[1761365296200,9.43727,3927.3,3927.2,0.7842]
[1761365301502,9.43727,3927.3,3927.2,0.5514]
[1761365302501,9.99280874,3927.3,3927.2,0.5514]
[1761365310906,10.90485118,3927.3,3927.2,0.5514]
[1761365312005,10.90485118,3927.3,3927.2,0.3286]
[1761365312212,0.45829,3927.1,3927.0,0.165]
[1761365312907,1.01382874,3927.1,3927.0,0.165]
[1761365313112,1.82517799,3927.1,3927.0,0.165]
[1761365313310,2.38071673,3927.1,3927.0,0.165]
[1761365313922,0.45835,3926.6,3926.5,0.2133]
[1761365314119,13.19668874,3926.6,3926.5,0.2133]
[1761365314420,13.19668874,3926.6,3926.5,0.5637]
[1761365324318,4.22168874,3926.6,3926.5,1.0107]
[1761365324519,13.19668874,3926.6,3926.5,1.0107]
[1761365326825,13.19668874,3926.6,3926.5,0.7828]
[1761365329926,13.19668874,3926.6,3926.5,0.5637]
[1761365330928,13.19668874,3926.6,3926.5,0.787]
[1761365334730,13.19668874,3926.6,3926.5,1.0149]
[1761365338626,9.98888874,3926.6,3926.5,1.0149]
[1761365338826,13.19668874,3926.6,3926.5,1.0149]
[1761365339132,14.10793694,3926.6,3926.5,1.0149]
[1761365341234,13.19668874,3926.6,3926.5,1.0149]
[1761365348847,14.10974371,3926.6,3926.5,1.0149]
[1761365349844,4.67639371,3926.6,3926.5,1.0149]
[1761365350045,13.64939371,3926.6,3926.5,1.0149]
[1761365351445,14.10774371,3926.6,3926.5,1.0149]
[1761365353651,10.89994371,3926.6,3926.5,1.0149]
[1761365353849,14.10774371,3926.6,3926.5,1.0149]
[1761365357245,13.19468874,3926.6,3926.5,1.0149]
[1761365363352,9.98688874,3926.6,3926.5,1.0149]
[1761365365059,10.89994371,3926.6,3926.5,1.0149]
[1761365375761,1.92694371,3926.6,3926.5,1.47326]
[1761365376067,1.01388874,3926.6,3926.5,1.47326]
[1761365378469,0.55553874,3926.6,3926.5,1.47326]
[1761365378668,1.01388874,3926.6,3926.5,1.47326]
[1761365379663,0.55553874,3926.6,3926.5,1.47326]
[1761365382871,3.2078,3927.1,3927.0,1.3822]
[1761365387674,0.45828,3927.2,3927.0,1.0398]
[1761365387874,0.45828,3927.2,3927.1,0.7841]
[1761365397180,3.21093515,3927.4,3927.2,0.45828]
[1761365397377,3.66919515,3927.4,3927.3,0.7841]
[1761365398774,3.66919515,3927.4,3927.3,1.24237]
[1761365400784,3.66919515,3927.4,3927.3,0.7841]
[1761365400980,3.66919515,3927.4,3927.3,1.24237]
[1761365401585,3.66919515,3927.4,3927.3,0.7841]
[1761365404981,0.46139515,3927.4,3927.3,0.7841]
[1761365405190,3.66919515,3927.4,3927.3,0.7841]
[1761365407793,3.21093515,3927.4,3927.3,1.24237]
[1761365410890,3.66919515,3927.4,3927.3,1.24237]
[1761365411090,0.46139515,3927.4,3927.3,1.24237]
[1761365414097,0.00313515,3927.4,3927.3,1.24237]
[1761365428803,3.68802,3927.8,3927.7,0.45822]
[1761365429009,3.68802,3927.8,3927.7,1.24312]
[1761365429303,3.2298,3927.8,3927.7,1.24312]
[1761365429902,3.23296685,3927.8,3927.7,1.24312]
[1761365430608,3.69117685,3927.8,3927.7,1.24312]
[1761365431404,3.23296685,3927.8,3927.7,1.24312]
[1761365432310,3.69117685,3927.8,3927.7,1.24312]
[1761365435812,0.48337685,3927.8,3927.7,1.24312]
[1761365445419,0.02516685,3927.8,3927.7,1.24312]
[1761365449726,0.48337685,3927.8,3927.7,1.24312]
[1761365452222,0.02516685,3927.8,3927.7,1.24312]
[1761365456932,0.02516685,3927.8,3927.7,2.15900012]
[1761365461342,0.02516685,3927.8,3927.7,2.15919962]
[1761365461844,0.48337685,3927.8,3927.7,2.15919962]
[1761365463339,0.48337685,3927.8,3927.7,9.7419]
[1761365464838,0.48337685,3927.8,3927.7,10.20012]
[1761365469041,0.48337685,3927.8,3927.7,1.24312]
[1761365469244,0.48337685,3927.8,3927.7,9.7409]
[1761365469546,0.48337685,3927.8,3927.7,0.7849]
[1761365469746,0.48337685,3927.8,3927.7,9.7409]
[1761365471637,0.02516685,3927.8,3927.7,10.19912]
[1761365472047,0.02516685,3927.8,3927.7,11.11519962]
[1761365479449,0.02516685,3927.8,3927.7,10.19912]
[1761365482352,0.02516685,3927.8,3927.7,11.57009201]
[1761365493557,3.66595,3928.4,3928.3,0.5748]
[1761365493764,3.66595,3928.4,3928.3,9.7613]
[1761365494557,3.66815556,3928.4,3928.3,9.7613]
[1761365502067,0.46035556,3928.4,3928.3,9.7613]
[1761365502269,3.66815556,3928.4,3928.3,9.7613]
[1761365508372,3.66815556,3928.4,3928.3,10.21945]
[1761365510571,3.21000556,3928.4,3928.3,10.21945]
[1761365516680,3.66814556,3928.4,3928.3,10.21945]
[1761365518684,0.46034556,3928.4,3928.3,10.21945]
[1761365518884,0.00220556,3928.4,3928.3,10.21945]
[1761365520593,0.00220556,3928.4,3928.3,11.13529693]
[1761365521181,0.00220556,3928.4,3928.3,10.21945]
[1761365525493,0.00220556,3928.4,3928.3,11.13529693]
[1761365529801,0.00220556,3928.4,3928.3,10.21945]
[1761365532702,0.00220556,3928.4,3928.3,1.26545]
[1761365532997,0.00220556,3928.4,3928.3,11.12937339]
[1761365538203,0.00220556,3928.4,3928.3,10.21445]
[1761365539607,0.00220556,3928.4,3928.3,1.26545]
[1761365539911,0.00220556,3928.4,3928.3,11.12946379]
[1761365540305,0.00220556,3928.4,3928.3,10.21445]
[1761365548220,0.00220556,3928.4,3928.3,11.58542201]
[1761365563230,0.00220556,3928.4,3928.3,10.21445]
[1761365569842,0.00220556,3928.4,3928.3,11.58915581]
[1761365579849,0.00220556,3928.4,3928.3,10.21445]
[1761365589953,0.00220556,3928.4,3928.0,0.1317]
[1761365590167,11.45948,3926.5,3924.0,3.2078]
[1761365590354,3.2078,3925.2,3922.6,3.2078]
[1761365590554,0.45863,3924.3,3924.2,0.2349]
[1761365590849,4.5840464,3924.3,3923.5,0.1338]
[1761365591048,3.2078,3923.6,3923.5,0.6012]
[1761365591264,4.12751102,3923.6,3923.5,0.60413672]
[1761365592156,0.91971102,3923.6,3923.5,14.97249456]
[1761365593256,4.11261242,3924.1,3923.5,14.97249456]
[1761365593257,3.08175318,3924.1,3924.0,1.1806]
[1761365593454,3.08175318,3924.1,3924.0,13.923]
[1761365594260,3.08504339,3924.1,3924.0,13.923]
[1761365599562,4.55594945,3925.3,3924.8,0.3248]
[1761365599755,3.6663,3925.3,3925.2,0.7922]
[1761365599953,3.6663,3925.3,3925.2,1.0468]
[1761365600155,3.6663,3925.3,3925.2,0.7922]
[1761365600563,3.6686691,3925.3,3925.2,0.7922]
[1761365604569,3.6686691,3925.3,3925.2,11.18493066]
[1761365605269,4.46353984,3925.3,3925.2,11.18493066]
[1761365608058,4.46353984,3925.3,3925.2,11.43953066]
[1761365610169,4.46353984,3925.3,3925.2,0.7922]
[1761365611668,4.46353984,3925.3,3925.2,11.43953066]
[1761365616973,1.25573984,3925.3,3925.2,11.43953066]
[1761365627572,1.25573984,3925.3,3925.2,1.0468]
[1761365628678,1.25573984,3925.3,3925.2,11.43953066]
[1761365632682,2.16868527,3925.3,3925.2,11.43953066]
[1761365633183,1.25573984,3925.3,3925.2,11.43953066]
[1761365635281,1.82785815,3925.8,3925.7,0.9828]
[1761365635482,1.82785815,3925.8,3925.7,2.4276]
[1761365635683,0.45844,3925.8,3925.7,2.173]
[1761365636181,0.45844,3925.8,3925.7,12.82033066]
[1761365636379,0.46105379,3925.8,3925.7,12.82033066]
[1761365641579,0.45836,3926.5,3926.4,1.6534]
[1761365641777,0.45836,3926.5,3926.4,1.908]
[1761365641977,0.45836,3926.5,3926.4,12.30073066]
[1761365642282,0.45836,3926.5,3926.4,13.49213066]
[1761365642789,0.46105354,3926.5,3926.4,13.49493198]
[1761365648186,0.46105354,3926.5,3926.4,3.10220132]
[1761365648379,0.46105354,3926.5,3926.4,13.49493198]
[1761365659599,0.46105354,3926.5,3926.4,3.10220132]
[1761365660592,0.46105354,3926.5,3926.4,13.49493198]
[1761365666098,0.46105354,3926.5,3926.4,13.95330198]
[1761365666293,0.9118095,3927.0,3926.8,1.5239]
[1761365666500,0.45831,3926.9,3926.8,1.5239]
[1761365666897,0.45831,3926.9,3926.8,2.6144]
[1761365667296,0.46101989,3926.9,3926.8,2.6144]
[1761365681801,0.9118095,3927.5,3927.4,2.5272]
[1761365682001,0.45821,3927.9,3927.8,1.0067]
[1761365682200,0.45821,3927.9,3927.8,2.5272]
[1761365682904,0.46052537,3927.9,3927.8,2.5272]
[1761365695415,0.00231537,3927.9,3927.8,2.7818]
[1761365696514,0.00231537,3927.9,3927.8,13.17453066]
[1761365699421,0.00231537,3927.9,3927.8,2.5272]
[1761365699620,0.46051537,3927.9,3927.8,2.5272]
[1761365715031,0.00231537,3927.9,3927.8,2.7818]
[1761365715535,0.00231537,3927.9,3927.8,14.0913136]
[1761365716435,0.00231537,3927.9,3927.8,13.17453066]
[1761365724130,0.00231537,3927.9,3927.8,2.5272]
[1761365740050,3.21011537,3927.9,3927.8,2.5272]
[1761365741052,12.19511537,3927.9,3927.8,2.5272]
[1761365747363,3.21011537,3927.9,3927.8,2.5272]
[1761365747657,12.19211537,3927.9,3927.8,2.5272]
[1761365749863,13.10392487,3927.9,3927.8,2.5272]
[1761365754366,12.19211537,3927.9,3927.8,2.5272]
[1761365759873,13.10498045,3927.9,3927.8,2.5272]
[1761365760874,13.10498045,3927.9,3927.8,0.56806243]
[1761365761064,13.56153352,3927.9,3927.8,0.56806243]
[1761365761265,12.19211537,3927.9,3927.8,0.56806243]
[1761365762468,12.19211537,3927.9,3927.5,0.472]
[1761365763266,1.36793944,3927.6,3927.5,0.472]
[1761365763472,10.34993944,3927.6,3927.5,0.472]
[1761365764272,10.34993944,3927.6,3927.5,0.9997]
[1761365764469,10.34993944,3927.6,3927.5,1.8253]
[1761365767075,13.55773944,3927.6,3927.5,1.8253]
[1761365767284,12.1898,3927.6,3927.5,1.8253]
[1761365769185,12.1898,3927.6,3927.5,2.6386]
[1761365769883,8.982,3927.6,3927.5,2.6386]
[1761365770083,12.1898,3927.6,3927.5,2.6386]
[1761365775585,3.2078,3927.6,3927.5,13.03133066]
[1761365775776,12.1908,3927.6,3927.5,13.03133066]
[1761365776788,8.983,3927.6,3927.5,13.03133066]
[1761365777189,12.1908,3927.6,3927.5,13.03133066]
[1761365779892,13.10187319,3927.6,3927.5,13.03133066]
[1761365781292,12.1908,3927.6,3927.5,13.03133066]
[1761365782292,13.10187319,3927.6,3927.5,13.03133066]
[1761365784595,13.10187319,3927.6,3927.5,2.6386]
[1761365785395,12.1908,3927.6,3927.5,2.6386]
[1761365788599,8.983,3927.6,3927.5,2.6386]
[1761365788899,12.1908,3927.6,3927.5,2.6386]
[1761365789497,13.55873944,3927.6,3927.5,2.6386]
[1761365790002,12.1908,3927.6,3927.5,2.6386]
[1761365793203,8.983,3927.6,3927.5,2.6386]
[1761365793404,12.1908,3927.6,3927.5,2.6386]
[1761365796604,3.2078,3927.6,3927.5,2.6386]
[1761365796815,12.1898,3927.6,3927.5,2.6386]
[1761365799001,8.982,3927.6,3927.5,2.6386]
[1761365799309,12.1898,3927.6,3927.5,2.6386]
[1761365800901,3.2078,3927.6,3927.5,13.03133066]
[1761365802007,0.91520404,3927.9,3927.7,1.0153]
[1761365802209,0.00231537,3927.9,3927.8,12.38983066]
[1761365810313,9.89288867,3928.8,3928.6,1.0153]
[1761365810516,9.89288867,3928.8,3928.7,1.7425]
[1761365811322,8.98279302,3928.8,3928.7,1.7425]
[1761365816324,12.19059302,3928.8,3928.7,1.7425]
[1761365818429,3.21059302,3928.8,3928.7,1.7425]
[1761365818728,12.18959302,3928.8,3928.7,1.7425]
[1761365824530,12.18859302,3928.8,3928.7,1.7425]
[1761365825530,12.18859302,3928.8,3928.7,12.13523066]
[1761365828330,13.10148169,3928.8,3928.7,12.13523066]
[1761365830335,12.18859302,3928.8,3928.7,12.13523066]
[1761365833340,12.18759302,3928.8,3928.7,12.13523066]
[1761365833538,3.21059302,3928.8,3928.7,12.13523066]
[1761365833838,12.18759302,3928.8,3928.7,12.13523066]
[1761365836344,13.55680803,3928.8,3928.7,12.38983066]
[1761365839335,12.18759302,3928.8,3928.7,12.38983066]
[1761365843044,12.18759302,3928.8,3928.7,1.9971]
[1761365843245,12.18759302,3928.8,3928.7,12.38983066]
[1761365843437,3.21059302,3928.8,3928.7,12.38983066]
[1761365843730,12.18759302,3928.8,3928.7,12.38983066]
[1761365844647,12.18759302,3928.8,3928.7,1.7425]
[1761365847048,12.18659302,3928.8,3928.7,12.38983066]
[1761365847252,3.21059302,3928.8,3928.7,12.38983066]
[1761365847549,11.50159302,3928.8,3928.7,12.38983066]
[1761365849353,8.29379302,3928.8,3928.7,12.38983066]
[1761365850047,9.66450279,3928.8,3928.7,12.38983066]
[1761365851562,8.29379302,3928.8,3928.7,12.38983066]
[1761365851755,0.00279302,3928.8,3928.7,12.38983066]
[1761365851954,8.97879302,3928.8,3928.7,12.38983066]
[1761365852451,8.97879302,3928.8,3928.7,1.9971]
[1761365852761,8.97879302,3928.8,3928.7,12.38983066]
[1761365858263,8.97879302,3928.8,3928.7,1.9971]
[1761365858465,8.97879302,3928.8,3928.7,12.38983066]
[1761365859258,9.892232,3928.8,3928.7,12.38983066]
[1761365859463,8.97879302,3928.8,3928.7,12.38983066]
[1761365859668,9.8921884,3928.8,3928.7,12.38983066]
[1761365869967,9.8921884,3928.8,3928.7,11.87033066]
[1761365870169,0.00279302,3928.8,3928.7,1.5468]
[1761365870371,10.22678825,3928.8,3928.7,11.93953066]
[1761365870765,10.34678825,3928.8,3928.7,12.19413066]
[1761365873971,0.00279302,3928.8,3928.7,12.19413066]
[1761365875368,3.2078,3929.8,3929.7,1.426]
[1761365875564,3.2078,3929.8,3929.7,9.53527936]
[1761365875865,3.2078,3930.2,3930.1,1.426]
[1761365876063,3.2078,3930.7,3930.1,4.282]
[1761365876263,0.55242,3930.8,3930.7,1.6806]
[1761365876568,0.55475798,3930.8,3930.7,1.6806]
[1761365876765,0.55475798,3930.8,3930.7,9.78987936]
[1761365877571,3.2078,3931.2,3930.7,9.78987936]
[1761365877766,3.2078,3931.2,3930.5,0.71599]
[1761365877767,3.2078,3931.2,3931.1,1.6806]
[1761365878168,3.2078,3931.2,3931.1,9.53527936]
[1761365878471,3.2078,3931.7,3931.6,1.4683]
[1761365878675,12.19872903,3931.7,3931.6,1.4683]
[1761365878868,12.19872903,3931.7,3931.6,9.57757936]
[1761365881274,12.19872903,3931.7,3931.6,1.0622]
[1761365881474,12.19872903,3931.7,3931.6,1.4683]
[1761365883577,12.19372903,3931.7,3931.6,1.4683]
[1761365884175,12.19372903,3931.7,3931.6,0.6494]
[1761365884471,0.00192903,3931.7,3931.6,9.83217936]
[1761365885170,3.2078,3932.6,3932.5,1.7061]
[1761365885378,0.20798373,3933.3,3932.6,0.6494]
[1761365885578,11.88393285,3935.6,3932.6,0.6494]
[1761365885579,5.02154322,3934.2,3934.0,1.7061]
[1761365885782,3.2078,3934.2,3934.1,1.4683]
[1761365886076,0.00274157,3934.2,3934.1,1.47078824]
[1761365887178,3.14274157,3934.2,3934.1,1.47078824]
[1761365887477,3.14274157,3934.2,3934.1,0.65188824]
[1761365887478,0.00274157,3934.2,3934.1,0.65188824]
[1761365887673,3.38374157,3934.2,3934.1,0.65188824]
[1761365887876,9.18874157,3934.2,3934.1,1.56458824]
[1761365888181,9.18874157,3934.2,3934.1,0.65188824]
[1761365888379,0.00274157,3934.2,3934.1,1.07118824]
[1761365888874,3.38574157,3934.2,3934.1,1.57108824]
[1761365889076,0.00274157,3934.2,3934.1,1.57108824]
[1761365889277,3.38574157,3934.2,3934.1,1.57108824]
[1761365889475,0.00274157,3934.2,3934.1,1.57108824]
[1761365889779,3.15174157,3934.2,3934.1,1.57108824]
[1761365890172,0.00274157,3934.2,3934.1,1.57108824]
[1761365890677,4.17674157,3934.2,3934.1,1.57108824]
[1761365890873,0.00274157,3934.2,3934.1,1.57108824]
[1761365891067,0.00274157,3934.2,3934.1,9.9349676]
[1761365891274,6.2398,3934.9,3934.8,1.6509]
[1761365892273,6.24252828,3934.9,3934.8,1.6509]
[1761365892977,12.41752828,3934.9,3934.8,1.6509]
[1761365893281,12.41752828,3934.9,3934.8,0.7317]
[1761365894776,12.41752828,3934.9,3934.6,0.7317]
[1761365894980,12.41752828,3934.9,3934.5,0.2451]
[1761365895379,12.41752828,3934.9,3934.5,0.9768]
[1761365895980,12.41752828,3934.9,3934.6,0.7317]
[1761365898282,12.41752828,3934.9,3934.5,0.2451]
[1761365898678,12.41752828,3934.9,3933.5,0.2378]
[1761365898882,3.2078,3933.9,3933.6,0.2546]
[1761365899086,9.193,3933.8,3933.6,0.2546]
[1761365899487,9.193,3933.8,3933.6,0.6739]
[1761365899673,9.193,3933.8,3933.6,0.67666781]
[1761365900371,9.193,3933.8,3933.7,0.7317]
[1761365903183,9.043,3933.8,3933.7,0.7317]
[1761365904187,9.043,3933.8,3933.7,1.6509]
[1761365904786,9.043,3933.8,3933.7,1.151]
[1761365906288,9.043,3933.8,3933.7,0.7317]
[1761365906989,0.90677993,3934.1,3933.9,0.7317]
[1761365907287,4.55754302,3934.3,3934.2,0.7317]
[1761365907488,12.59954302,3934.3,3934.2,0.7317]
[1761365908184,12.59954302,3934.3,3934.2,1.6509]
[1761365908185,4.55754302,3934.3,3934.2,1.6509]
[1761365908382,12.3858,3934.3,3934.2,1.48558878]
[1761365908583,4.57046927,3934.3,3934.2,1.48558878]
[1761365908880,13.74946927,3934.3,3934.2,1.48558878]
[1761365909481,12.3868,3934.3,3934.2,1.48558878]
[1761365909680,3.2078,3934.3,3934.2,1.74018878]
[1761365909991,12.67982691,3934.3,3934.2,9.84946814]
[1761365910786,9.47202691,3934.3,3934.2,9.84946814]
[1761365911183,8.563,3934.3,3934.2,9.84946814]
[1761365911387,1.36353395,3934.5,3934.4,1.151]
[1761365911585,10.54453395,3934.5,3934.4,1.4056]
[1761365911786,10.54453395,3934.5,3934.4,1.151]
[1761365912285,9.181,3934.5,3934.4,1.151]
[1761365912895,3.2078,3934.7,3934.6,1.151]
[1761365913195,11.9888,3934.7,3934.6,1.40296252]
[1761365913497,5.02154322,3934.7,3934.6,1.40296252]
[1761365913795,13.80754322,3934.7,3934.6,1.40296252]
[1761365914494,5.03272732,3934.7,3934.6,9.76684188]
[1761365914698,1.82492732,3934.7,3934.6,9.76684188]
[1761365914893,0.00272828,3934.9,3934.6,9.28307936]
[1761365915093,0.00272828,3934.9,3934.8,1.1738]
[1761365915292,9.17872828,3934.9,3934.8,1.9055]
[1761365915492,9.17872828,3934.9,3934.8,10.01477936]
[1761365915696,0.00272828,3934.9,3934.8,10.01477936]
[1761365915891,9.17872828,3934.9,3934.8,10.01477936]
[1761365918691,9.17872828,3934.9,3934.8,9.51487936]
[1761365919196,9.17872828,3934.9,3934.8,0.7317]
[1761365920598,0.00272828,3934.9,3934.6,1.2126]
[1761365920801,10.98966976,3934.8,3934.7,1.4672]
[1761365921294,10.98966976,3934.8,3934.7,1.2126]
[1761365922196,1.82466976,3934.8,3934.7,1.2126]
[1761365922496,10.98766976,3934.8,3934.7,1.2126]
[1761365923194,9.163,3934.8,3934.7,1.2126]
[1761365923399,10.98795581,3934.8,3934.7,1.2126]
[1761365923886,10.98095581,3934.8,3934.7,1.2126]
[1761365926593,1.82495581,3934.8,3934.7,1.2126]
[1761365926791,10.97895581,3934.8,3934.7,1.2126]
[1761365928690,10.97895581,3934.8,3934.7,0.7417]
[1761365929097,10.97895581,3934.8,3934.7,0.9963]
[1761365929893,0.00272828,3934.9,3934.7,1.936]
[1761365930098,0.00272828,3934.9,3934.8,1.6814]
[1761365930398,8.84572828,3934.9,3934.8,1.6814]
[1761365930589,8.84572828,3934.9,3934.8,1.2126]
[1761365932398,0.00272828,3934.9,3934.8,10.04527936]
[1761365932589,1.37139128,3934.9,3934.8,13.25307936]
[1761365932795,0.00272828,3934.9,3934.8,13.25307936]
[1761365934392,1.82513053,3935.2,3934.8,13.25307936]
[1761365934599,8.586,3935.4,3935.3,0.9397]
[1761365934898,1.82513053,3935.6,3935.5,1.2211]
[1761365935101,10.96213053,3935.6,3935.5,2.2174]
[1761365935306,10.96213053,3935.6,3935.5,10.32667936]
[1761365935605,9.14027877,3935.6,3935.5,10.32667936]
[1761365935794,10.9654093,3935.6,3935.5,10.32667936]
[1761365936398,9.14027877,3935.6,3935.5,10.32667936]
[1761365937899,9.14027877,3935.6,3935.5,9.85787936]
[1761365937900,10.9654093,3935.6,3935.5,9.85787936]
[1761365938096,1.8284093,3935.6,3935.5,10.32667936]
[1761365938301,9.13927877,3935.6,3935.5,10.32667936]
[1761365940197,1.72881741,3935.9,3935.5,10.32667936]
[1761365940399,1.72881741,3936.3,3936.2,1.6243]
[1761365940703,10.21481741,3936.3,3936.2,1.8789]
[1761365940899,10.21481741,3936.3,3936.2,9.98817936]
[1761365941296,8.48866181,3936.3,3936.2,9.98817936]
[1761365941901,0.00266181,3936.3,3936.2,9.98817936]
[1761365942203,9.13366181,3936.3,3936.2,9.98817936]
[1761365942998,9.13166181,3936.3,3936.2,9.98817936]
[1761365943406,0.00266181,3936.3,3936.2,9.98817936]
[1761365943600,5.48223393,3937.3,3936.8,0.9255]
[1761365943806,10.2208,3937.3,3937.2,0.6988]
[1761365944006,10.2208,3937.3,3937.0,0.2656]
[1761365944207,10.2208,3937.3,3937.1,0.6988]
[1761365944713,10.22336742,3937.3,3937.1,0.70119616]
[1761365946107,10.22336742,3937.3,3937.2,1.6243]
[1761365946108,0.00256742,3937.3,3937.2,1.6243]
[1761365946303,9.12756742,3937.3,3937.2,1.6243]
[1761365947702,0.00256742,3937.3,3937.2,1.6243]
[1761365947898,3.2078,3937.7,3937.5,0.2732]
[1761365948111,2.00817752,3940.7,3938.6,0.7024]
[1761365948112,6.869,3938.8,3938.6,0.7024]
[1761365948303,6.869,3938.8,3938.0,0.2732]
[1761365948304,6.87,3938.7,3938.0,0.2732]
[1761365948610,3.2078,3938.4,3938.0,0.2732]
[1761365948908,9.12,3938.3,3937.5,0.7167]
[1761365949107,0.90803774,3937.6,3937.5,0.7167]
[1761365949306,9.12,3937.6,3937.5,0.2732]
[1761365950308,9.12,3937.6,3937.5,0.9756]